fUSD/lending_fUSD_20251025
["ID","MTS","AMOUNT","RATE_DAILY","PERIOD"]
[392342874,1761373840057,-213.90051469,0.00026542,2]
[392342883,1761373843014,-286.09948531,0.00026542,2]
[392342884,1761373843026,-500.0,0.00026542,2]
[392342885,1761373843036,-9127.04230707,0.00026702,2]
[392342886,1761373843048,-2780.4875866,0.00026702,2]
[392342887,1761373843060,-67527.1138208,0.00026702,2]
[392342888,1761373843072,-2433.23,0.00026757,2]
[392342889,1761373843082,-200.0,0.00026776,2]
[392342890,1761373843104,-200.0,0.00026777,2]
[392342891,1761373843121,-10792.33,0.00026825,2]
[392342892,1761373843136,-194.49,0.00026854,2]
[392342893,1761373843151,-150.0,0.00026889,2]
[392342894,1761373843165,-263.25,0.000269,2]
[392342895,1761373843180,-1000.0,0.00026968,2]
[392342896,1761373843195,-308.12140103,0.00026993,2]
[392342897,1761373843209,-3969.83642,0.00026993,2]
[392342898,1761373843222,-392.11617603,0.00026993,2]
[392342899,1761373843237,-253.98258881,0.00027009,2]
[392342900,1761373843250,-166.68,0.0002706,2]
[392342901,1761373843262,-675.70411228,0.00027316,2]
[392342902,1761373843275,-333.34,0.00027397,14]
[392342903,1761373843291,-300.0,0.00027397,2]
[392342904,1761373843305,-262.21336275,0.00027507,14]
[392342905,1761373843319,-150.0,0.00027507,2]
[392342906,1761373843332,-500.0,0.00027507,14]
[392342907,1761373843343,-202.80772456,0.00027511,2]
[392342908,1761373843356,-213.82631234,0.00027562,2]
[392342909,1761373843366,-500.0,0.00027562,14]
[392342911,1761373843376,-2890.12,0.00027612,2]
[392342913,1761373843388,-500.0,0.00027617,14]
[392342915,1761373843399,-250.0,0.00027621,2]
[392342916,1761373843417,-541.77411328,0.00027657,2]
[392342917,1761373843429,-333.34,0.00027671,14]
[392342918,1761373843442,-153.77949303,0.00027671,2]
[392342919,1761373843455,-150.0,0.00027671,14]
[392342920,1761373843467,-500.0,0.00027671,14]
[392342921,1761373843477,-666.0,0.0002772,3]
[392342922,1761373843492,-151.0,0.0002772,30]
[392342923,1761373843502,-153.459826,0.0002772,30]
[392342924,1761373843514,-152.646131,0.0002772,30]
[392342925,1761373843525,-151.0,0.0002772,30]
[392342926,1761373843540,-151.0,0.0002772,30]
[392342927,1761373843553,-151.0,0.0002772,30]
[392342928,1761373843565,-151.0,0.0002772,30]
[392342929,1761373843575,-151.0,0.0002772,30]
[392342930,1761373843586,-151.0,0.0002772,30]
[392342931,1761373843597,-151.0,0.0002772,30]
[392342932,1761373843610,-151.0,0.0002772,30]
[392342933,1761373843623,-151.0,0.0002772,30]
[392342934,1761373843635,-151.0,0.0002772,30]
[392342935,1761373843648,-151.0,0.0002772,30]
[392342936,1761373843659,-151.0,0.0002772,30]
[392342937,1761373843669,-183.689176,0.0002772,30]
[392342938,1761373843679,-154.809523,0.0002772,30]
[392342939,1761373843688,-151.0,0.0002772,30]
[392342940,1761373843699,-151.0,0.0002772,30]
[392342941,1761373843709,-151.0,0.0002772,30]
[392342942,1761373843720,-151.0,0.0002772,30]
[392342943,1761373843737,-272.106751,0.0002772,30]
[392342944,1761373843747,-155.384356,0.0002772,30]
[392342945,1761373843760,-151.0,0.0002772,30]
[392342946,1761373843772,-151.00001,0.0002772,30]
[392342947,1761373843783,-151.0,0.0002772,30]
[392342948,1761373843795,-151.0,0.0002772,30]
[392342949,1761373843807,-151.0,0.0002772,30]
[392342950,1761373843819,-151.0,0.0002772,30]
[392342951,1761373843831,-151.0,0.0002772,30]
[392342952,1761373843842,-151.0,0.0002772,30]
[392342953,1761373843853,-151.0,0.0002772,30]
[392342954,1761373843864,-151.0,0.0002772,30]
[392342955,1761373843875,-151.0,0.0002772,30]
[392342956,1761373843886,-155.225836,0.0002772,30]
[392342957,1761373843897,-173.397693,0.0002772,30]
[392342958,1761373843908,-173.397693,0.0002772,30]
[392342959,1761373843919,-173.397693,0.0002772,30]
[392342960,1761373843930,-173.397693,0.0002772,30]
[392342961,1761373843940,-151.0,0.0002772,30]
[392342962,1761373843951,-151.0,0.0002772,30]
[392342963,1761373843962,-178.89627,0.0002772,30]
[392342964,1761373843973,-178.89627,0.0002772,30]
[392342965,1761373843991,-178.89627,0.0002772,30]
[392342966,1761373844003,-162.49046922,0.0002772,30]
[392342978,1761374031283,354.6,0.00027397,120]
[392342979,1761374150586,2000.05793904,0.00036709,30]
[392342980,1761374315203,153.9,0.00013699,2]
[392342983,1761374708349,-153.9,0.00020187,2]
[392342984,1761374708382,-203.0,0.00022205,2]
[392342985,1761374708415,-2848.69085601,0.00022206,2]
[392342987,1761375010808,698.47,0.00013207,2]
[392342988,1761375011200,698.47,0.00013902,2]
[392342989,1761375011398,698.47,0.00014598,2]
[392342990,1761375011620,698.47,0.00015293,2]
[392342991,1761375011833,698.47,0.00015988,2]
[392342992,1761375012029,698.47,0.00016683,2]
[392342993,1761375012228,698.47,0.00017378,2]
[392342994,1761375012419,698.47,0.00018073,2]
[392342995,1761375012617,698.47,0.00018768,2]
[392342996,1761375012814,698.47,0.00019463,2]
[392342998,1761375031815,-698.47,0.00020159,2]
[392342999,1761375031825,-698.47,0.00020854,2]
[392343000,1761375031836,-698.47,0.00021549,2]
[392343001,1761375031847,-698.47,0.00022244,2]
[392343002,1761375031858,-698.47,0.00022939,2]
[392343003,1761375031867,-698.47,0.00023634,2]
[392343004,1761375031882,-150.0,0.0002374,2]
[392343005,1761375031891,-3.34748859,0.00024329,2]
[392343006,1761375031931,-695.12251141,0.00024329,2]
[392343007,1761375031940,-588.81828798,0.00024427,2]
[392343008,1761375031951,-698.47,0.00025024,2]
[392343009,1761375031961,-2000.0,0.000255,2]
[392343010,1761375031971,-698.47,0.0002572,2]
[392343011,1761375031980,-153.51215495,0.00026075,2]
[392343012,1761375031990,-181.4599326,0.00026075,2]
[392343013,1761375031999,-336.72249859,0.00026075,2]
[392343014,1761375032009,-300.0,0.00026156,2]
[392343015,1761375032022,-500.0,0.00026156,2]
[392343016,1761375032032,-153.5584927,0.00026157,2]
[392343017,1761375032042,-4370.9554301,0.00026157,2]
[392343018,1761375032052,-271.6,0.00026408,2]
[392343019,1761375032062,-698.47,0.00026415,2]
[392343020,1761375032072,-3092.01,0.00026438,2]
[392343021,1761375032082,-2176.92,0.00026541,2]
[392343022,1761375032093,-153.9,0.00026676,2]
[392343023,1761375032103,-320.20466292,0.00026702,2]
[392343024,1761375032113,-824.24,0.00026732,2]
[392343025,1761375032123,-150.0,0.00026752,2]
[392343026,1761375032132,-250.0,0.00026787,2]
[392343027,1761375032142,-201.38,0.00026853,2]
[392343028,1761375032155,-3177.63,0.00026997,2]
[392343029,1761375032164,-816.39,0.00027056,2]
[392343030,1761375032174,-2432.01,0.00027106,2]
[392343031,1761375032186,-1000.0,0.0002714,2]
[392343032,1761375032195,-200.0,0.0002745,2]
[392343033,1761375032205,-500.0,0.00027571,2]
[392343034,1761375032215,-154.06070052,0.00027671,2]
[392343035,1761375032225,-3308.19702,0.00027671,2]
[392343036,1761375032235,-151.0,0.00027697,2]
[392343037,1761375032244,-151.0,0.00027697,2]
[392343038,1761375032254,-151.0,0.00027697,2]
[392343039,1761375032263,-151.0,0.00027697,2]
[392343040,1761375032273,-151.0,0.00027697,2]
[392343041,1761375032283,-151.0,0.00027697,2]
[392343042,1761375032293,-151.0,0.00027697,2]
[392343043,1761375032303,-151.0,0.00027697,2]
[392343045,1761375032312,-151.0,0.00027697,2]
[392343046,1761375032322,-151.0,0.00027697,2]
[392343047,1761375032332,-151.0,0.00027697,2]
[392343048,1761375032341,-151.0,0.00027697,2]
[392343049,1761375032350,-151.0,0.00027697,2]
[392343050,1761375032360,-247.05313764,0.00027697,2]
[392343051,1761375032370,-151.0,0.00027697,2]
[392343053,1761375032379,-213.94163622,0.00027697,2]
[392343055,1761375032389,-500.0,0.00027697,2]
[392343056,1761375032402,-500.0,0.00027697,2]
[392343057,1761375032412,-500.0,0.00027697,2]
[392343058,1761375032422,-607.93150947,0.00027697,2]
[392343059,1761375032432,-1000.0,0.000277,2]
[392343060,1761375032442,-3968.2416461,0.00027714,2]
[392343061,1761375032451,-16974.0597284,0.00027714,2]
[392343062,1761375032461,-1000.0,0.00027979,2]
[392343063,1761375032471,-712.48994511,0.0002798,2]
[392343064,1761375032481,-183.60693484,0.00027999,2]
[392343066,1761375032491,-386.18912293,0.00027999,2]
[392343068,1761375032500,-500.0,0.00027999,30]
[392343070,1761375032511,-1006.3214,0.00027999,2]
[392343071,1761375032521,-30593.11527026,0.00028,2]
[392343072,1761375032530,-160.0,0.00028,2]
[392343073,1761375032541,-88120.32823748,0.00028,2]
[392343074,1761375032551,-231.89864112,0.00028,2]
[392343075,1761375032561,-200.0,0.00028,14]
[392343076,1761375032570,-154.189106,0.00028,30]
[392343077,1761375032580,-151.0,0.00028,30]
[392343078,1761375032590,-153.557404,0.00028,30]
[392343079,1761375032599,-151.0,0.00028,30]
[392343080,1761375032609,-151.0,0.00028,30]
[392343081,1761375032619,-159.691854,0.00028,30]
[392343082,1761375032628,-151.0,0.00028,30]
[392343083,1761375032638,-151.0,0.00028,15]
[392343084,1761375032648,-151.0,0.00028,30]
[392343085,1761375032658,-151.0,0.00028,30]
[392343086,1761375032668,-151.0,0.00028,30]
[392343087,1761375032678,-151.0,0.00028,30]
[392343088,1761375032688,-299.07155,0.00028,30]
[392343089,1761375032697,-151.0,0.00028,30]
[392343090,1761375032707,-151.0,0.00028,30]
[392343091,1761375032716,-151.0,0.00028,30]
[392343092,1761375032726,-151.0,0.00028,30]
[392343093,1761375032736,-151.0,0.00028,30]
[392343094,1761375032745,-151.0,0.00028,30]
[392343095,1761375032755,-151.0,0.00028,30]
[392343096,1761375032768,-151.0,0.00028,30]
[392343097,1761375032778,-151.0,0.00028,30]
[392343098,1761375032788,-227.231836,0.00028,30]
[392343099,1761375032798,-151.0,0.00028,30]
[392343100,1761375032807,-195.66976,0.00028,30]
[392343101,1761375032817,-151.0,0.00028,30]
[392343102,1761375032829,-151.0,0.00028,30]
[392343103,1761375032840,-151.0,0.00028,30]
[392343104,1761375032850,-151.0,0.00028,30]
[392343105,1761375032860,-151.0,0.00028,30]
[392343106,1761375032869,-151.0,0.00028,30]
[392343107,1761375032879,-151.0,0.00028,30]
[392343108,1761375032889,-151.0,0.00028,30]
[392343109,1761375032899,-153.447861,0.00028,30]
[392343110,1761375032909,-151.0,0.00028,30]
[392343111,1761375032918,-151.0,0.00028,30]
[392343112,1761375032928,-151.0,0.00028,30]
[392343113,1761375032938,-152.201517,0.00028,30]
[392343114,1761375032947,-151.0,0.00028,30]
[392343115,1761375032956,-151.0,0.00028,30]
[392343116,1761375032966,-151.0,0.00028,30]
[392343117,1761375032975,-151.0,0.00028,30]
[392343118,1761375032985,-151.0,0.00028,30]
[392343119,1761375032995,-153.414668,0.00028,30]
[392343120,1761375033004,-216.835425,0.00028,30]
[392343121,1761375033014,-151.0,0.00028,30]
[392343122,1761375033024,-151.0,0.00028,30]
[392343123,1761375033034,-151.0,0.00028,30]
[392343124,1761375033044,-151.0,0.00028,30]
[392343125,1761375033054,-151.0,0.00028,30]
[392343126,1761375033063,-152.853371,0.00028,30]
[392343127,1761375033073,-152.803122,0.00028,30]
[392343128,1761375033083,-151.0,0.00028,30]
[392343129,1761375033092,-151.0,0.00028,30]
[392343130,1761375033102,-151.0,0.00028,30]
[392343131,1761375033112,-151.0,0.00028,30]
[392343132,1761375033122,-151.0,0.00028,30]
[392343133,1761375033132,-151.0,0.00028,30]
[392343134,1761375033141,-151.0,0.00028,30]
[392343135,1761375033159,-151.0,0.00028,30]
[392343136,1761375033180,-151.0,0.00028,30]
[392343137,1761375033191,-151.0,0.00028,30]
[392343138,1761375033201,-152.394478,0.00028,30]
[392343139,1761375033211,-151.0,0.00028,30]
[392343140,1761375033221,-159.630702,0.00028,30]
[392343141,1761375033231,-152.170934,0.00028,30]
[392343142,1761375033241,-151.264397,0.00028,30]
[392343143,1761375033251,-151.0,0.00028,30]
[392343144,1761375033260,-151.0,0.00028,30]
[392343145,1761375033271,-151.0,0.00028,30]
[392343146,1761375033281,-151.0,0.00028,30]
[392343147,1761375033291,-151.0,0.00028,30]
[392343148,1761375033301,-151.0,0.00028,30]
[392343149,1761375033314,-500.0,0.00028,2]
[392343150,1761375033324,-151.0,0.00028,30]
[392343151,1761375033333,-151.0,0.00028,30]
[392343152,1761375033343,-151.0,0.00028,30]
[392343153,1761375033353,-151.0,0.00028,30]
[392343154,1761375033363,-151.0,0.00028,30]
[392343155,1761375033372,-151.0,0.00028,30]
[392343156,1761375033382,-151.0,0.00028,30]
[392343157,1761375033392,-151.0,0.00028,30]
[392343158,1761375033402,-152.151388,0.00028,30]
[392343159,1761375033412,-151.0,0.00028,30]
[392343160,1761375033422,-151.0,0.00028,30]
[392343161,1761375033431,-151.0,0.00028,30]
[392343162,1761375033441,-199.897304,0.00028,30]
[392343163,1761375033450,-152.640412,0.00028,30]
[392343164,1761375033460,-151.0,0.00028,30]
[392343165,1761375033470,-151.0,0.00028,30]
[392343166,1761375033479,-151.0,0.00028,30]
[392343167,1761375033489,-151.0,0.00028,30]
[392343168,1761375033500,-151.0,0.00028,30]
[392343169,1761375033509,-151.0,0.00028,30]
[392343170,1761375033519,-151.0,0.00028,30]
[392343171,1761375033529,-151.0,0.00028,30]
[392343172,1761375033539,-151.0,0.00028,30]
[392343173,1761375033552,-151.0,0.00028,30]
[392343174,1761375033562,-151.0,0.00028,30]
[392343175,1761375033572,-167.878974,0.00028,30]
[392343176,1761375033582,-151.0,0.00028,30]
[392343177,1761375033592,-151.0,0.00028,30]
[392343178,1761375033602,-151.0,0.00028,30]
[392343179,1761375033612,-151.0,0.00028,30]
[392343180,1761375033621,-151.0,0.00028,30]
[392343181,1761375033631,-253.318895,0.00028,30]
[392343182,1761375033641,-181.688731,0.00028,30]
[392343183,1761375033651,-151.0,0.00028,30]
[392343184,1761375033660,-151.0,0.00028,30]
[392343185,1761375033670,-151.0,0.00028,30]
[392343186,1761375033679,-153.068042,0.00028,30]
[392343187,1761375033688,-151.914063,0.00028,30]
[392343188,1761375033698,-153.961455,0.00028,30]
[392343189,1761375033707,-151.0,0.00028,30]
[392343190,1761375033803,-151.744043,0.00028,30]
[392343191,1761375033813,-151.0,0.00028,30]
[392343192,1761375033822,-151.0,0.00028,30]
[392343193,1761375033831,-151.0,0.00028,30]
[392343194,1761375033840,-151.0,0.00028,30]
[392343195,1761375033850,-151.0,0.00028,30]
[392343196,1761375033859,-151.0,0.00028,30]
[392343197,1761375033868,-151.0,0.00028,30]
[392343198,1761375033878,-151.0,0.00028,30]
[392343199,1761375033888,-163.771548,0.00028,30]
[392343200,1761375033897,-151.0,0.00028,30]
[392343201,1761375033909,-151.0,0.00028,30]
[392343202,1761375033918,-209.479651,0.00028,30]
[392343203,1761375033927,-151.0,0.00028,30]
[392343204,1761375033937,-151.0,0.00028,30]
[392343205,1761375033946,-500.0,0.00028055,2]
[392343206,1761375033955,-1761.13,0.0002807,2]
[392343207,1761375033964,-500.0,0.00028079,30]
[392343208,1761375033974,-335.88,0.00028079,7]
[392343209,1761375033983,-96405.39348287,0.0002808,2]
[392343210,1761375033992,-893.94059782,0.0002808,2]
[392343211,1761375034001,-152.216411,0.0002808,30]
[392343212,1761375034011,-153.566976,0.0002808,30]
[392343213,1761375034020,-153.04558204,0.0002808,30]
[392343214,1761375034030,-151.0,0.0002808,30]
[392343215,1761375034039,-151.0,0.0002808,30]
[392343216,1761375034049,-151.0,0.0002808,30]
[392343217,1761375034059,-151.0,0.0002808,30]
[392343218,1761375034068,-157.537022,0.0002808,30]
[392343219,1761375034078,-151.0,0.0002808,30]
[392343220,1761375034087,-151.0,0.0002808,15]
[392343221,1761375034097,-151.0,0.0002808,30]
[392343222,1761375034106,-151.0,0.0002808,30]
[392343223,1761375034116,-151.0,0.0002808,30]
[392343224,1761375034126,-151.0,0.0002808,30]
[392343225,1761375034136,-151.0,0.0002808,30]
[392343226,1761375034145,-151.0,0.0002808,30]
[392343227,1761375034159,-151.0,0.0002808,30]
[392343228,1761375034169,-151.0,0.0002808,30]
[392343229,1761375034178,-151.0,0.0002808,30]
[392343230,1761375034187,-151.0,0.0002808,30]
[392343231,1761375034197,-178.952735,0.0002808,30]
[392343232,1761375034206,-151.0,0.0002808,30]
[392343233,1761375034216,-151.0,0.0002808,30]
[392343234,1761375034225,-152.567053,0.0002808,30]
[392343235,1761375034235,-151.0,0.0002808,30]
[392343236,1761375034244,-151.0,0.0002808,30]
[392343237,1761375034253,-151.0,0.0002808,30]
[392343238,1761375034263,-151.0,0.0002808,30]
[392343239,1761375034272,-151.0,0.0002808,30]
[392343240,1761375034281,-151.0,0.0002808,30]
[392343241,1761375034291,-151.0,0.0002808,30]
[392343242,1761375034301,-151.0,0.0002808,30]
[392343243,1761375034311,-151.0,0.0002808,30]
[392343244,1761375034325,-153.100218,0.0002808,30]
[392343245,1761375034334,-151.0,0.0002808,30]
[392343246,1761375034343,-151.0,0.0002808,30]
[392343247,1761375034353,-286.00418,0.0002808,30]
[392343248,1761375034363,-151.0,0.0002808,30]
[392343249,1761375034373,-151.0,0.0002808,30]
[392343250,1761375034382,-151.0,0.0002808,30]
[392343251,1761375034392,-151.0,0.0002808,30]
[392343252,1761375034401,-151.0,0.0002808,30]
[392343253,1761375034410,-151.0,0.0002808,30]
[392343254,1761375034420,-151.0,0.0002808,30]
[392343255,1761375034431,-151.0,0.0002808,30]
[392343256,1761375034440,-151.0,0.0002808,30]
[392343257,1761375034452,-207.363083,0.0002808,30]
[392343258,1761375034462,-151.0,0.0002808,30]
[392343259,1761375034472,-153.45997,0.0002808,30]
[392343260,1761375034482,-5.65436139,0.0002808,30]
[392343261,1761375034497,-270.85334061,0.0002808,30]
[392343262,1761375034507,-151.0,0.0002808,30]
[392343263,1761375034517,-151.0,0.0002808,30]
[392343264,1761375034527,-203.491145,0.0002808,30]
[392343265,1761375034537,-151.0,0.0002808,30]
[392343266,1761375034548,-151.0,0.0002808,30]
[392343267,1761375034558,-151.0,0.0002808,30]
[392343268,1761375034567,-151.0,0.0002808,30]
[392343269,1761375034577,-151.0,0.0002808,30]
[392343270,1761375034586,-151.0,0.0002808,30]
[392343271,1761375034595,-151.0,0.0002808,30]
[392343272,1761375034604,-500.0,0.0002811,2]
[392343273,1761375034613,-166.66,0.00028157,2]
[392343274,1761375034622,-500.0,0.00028164,2]
[392343275,1761375034632,-500.0,0.00028219,2]
[392343276,1761375034641,-500.0,0.00028274,2]
[392343277,1761375034651,-200.0,0.00028274,14]
[392343278,1761375034660,-183.0,0.00028302,2]
[392343279,1761375034669,-500.0,0.00028329,2]
[392343280,1761375034679,-500.0,0.00028384,2]
[392343281,1761375034688,-225.0,0.00028394,2]
[392343282,1761375034697,-300.0,0.00028418,2]
[392343283,1761375034707,-460.09551248,0.00028438,2]
[392343284,1761375034716,-200.0,0.00028548,14]
[392343285,1761375034726,-500.0,0.00028662,2]
[392343286,1761375034735,-279.0,0.00028698,2]
[392343287,1761375034745,-153.696417,0.0002874,30]
[392343288,1761375034756,-151.0,0.0002874,30]
[392343289,1761375034765,-151.0,0.0002874,30]
[392343290,1761375034776,-151.0,0.0002874,30]
[392343291,1761375034786,-151.0,0.0002874,30]
[392343292,1761375034795,-151.0,0.0002874,15]
[392343293,1761375034806,-156.592428,0.0002874,30]
[392343294,1761375034815,-151.0,0.0002874,30]
[392343295,1761375034829,-151.0,0.0002874,30]
[392343296,1761375034838,-151.0,0.0002874,30]
[392343297,1761375034849,-151.0,0.0002874,30]
[392343298,1761375034860,-151.0,0.0002874,30]
[392343299,1761375034870,-216.503349,0.0002874,30]
[392343300,1761375034880,-151.0,0.0002874,30]
[392343301,1761375034890,-151.0,0.0002874,30]
[392343302,1761375034899,-174.409562,0.0002874,30]
[392343303,1761375034908,-151.0,0.0002874,30]
[392343304,1761375034917,-151.0,0.0002874,30]
[392343305,1761375034926,-151.0,0.0002874,30]
[392343306,1761375034935,-151.0,0.0002874,30]
[392343307,1761375034944,-151.294324,0.0002874,30]
[392343308,1761375034954,-151.0,0.0002874,30]
[392343309,1761375034970,-151.0,0.0002874,30]
[392343310,1761375034979,-151.0,0.0002874,30]
[392343311,1761375034989,-250.98313006,0.0002874,30]
[392343312,1761375035032,-500.0,0.00026156,2]
[392343313,1761375035042,-216.26569835,0.00026156,2]
[392343314,1761375035054,-96.63874841,0.00026156,2]
[392343315,1761375035063,-9.12008994,0.0002874,30]
[392343316,1761375035072,-151.0,0.0002874,30]
[392343317,1761375035082,-151.0,0.0002874,30]
[392343318,1761375035091,-230.071498,0.0002874,30]
[392343319,1761375035101,-151.0,0.0002874,30]
[392343320,1761375035110,-301.4649,0.0002874,30]
[392343321,1761375035119,-151.0,0.0002874,30]
[392343322,1761375035129,-151.0,0.0002874,30]
[392343323,1761375035139,-151.0,0.0002874,30]
[392343324,1761375035149,-151.0,0.0002874,30]
[392343325,1761375035164,-151.0,0.0002874,30]
[392343326,1761375035173,-151.0,0.0002874,30]
[392343327,1761375035183,-151.0,0.0002874,30]
[392343328,1761375035192,-151.0,0.0002874,30]
[392343329,1761375035202,-151.0,0.0002874,30]
[392343330,1761375035211,-151.0,0.0002874,30]
[392343331,1761375035223,-151.0,0.0002874,30]
[392343332,1761375035233,-151.0,0.0002874,30]
[392343333,1761375035242,-153.40553,0.0002874,30]
[392343334,1761375035252,-152.460993,0.0002874,30]
[392343335,1761375035263,-151.0,0.0002874,30]
[392343336,1761375035273,-151.0,0.0002874,30]
[392343337,1761375035283,-151.0,0.0002874,30]
[392343338,1761375035292,-160.746115,0.0002874,30]
[392343339,1761375035302,-1693.05518465,0.0002875,2]
[392343340,1761375035314,-306.88097256,0.0002875,2]
[392343341,1761375035325,-4763.01368576,0.0002875,2]
[392343342,1761375035337,-1006.71433122,0.0002875,2]
[392343343,1761375035348,-5330.38983742,0.0002875,2]
[392343344,1761375035357,-125.11016258,0.000288,7]
[392343345,1761375037877,-154.06070051,0.00028,2]
[392343346,1761375037887,-153.881134,0.00028,30]
[392343347,1761375037896,-124.43742433,0.00028,30]
[392343348,1761375040023,-26.56257567,0.00028,30]
[392343349,1761375040033,-151.0,0.00028,30]
[392343350,1761375040043,-151.0,0.00028,30]
[392343351,1761375040053,-151.0,0.00028,30]
[392343352,1761375040063,-239.25009541,0.00028,30]
[392343353,1761375040075,-61.62266859,0.00028,30]
[392343354,1761375040085,-151.0,0.00028,30]
[392343355,1761375040095,-151.0,0.00028,30]
[392343356,1761375040105,-151.0,0.0002808,30]
[392343357,1761375040115,-151.0,0.0002808,30]
[392343358,1761375040125,-87.79551743,0.0002808,30]
[392343359,1761375040144,-63.20448257,0.0002808,30]
[392343360,1761375040155,-151.0,0.0002808,30]
[392343361,1761375040167,-151.0,0.0002874,30]
[392343362,1761375040178,-151.0,0.0002874,30]
[392343363,1761375040188,-620.36104505,0.000288,7]
[392343364,1761375040200,-254.52879237,0.000288,7]
[392343365,1761375040210,-19.74002402,0.00028822,14]
[392343366,1761375040222,-180.25997598,0.00028822,14]
[392343367,1761375040232,-160.400703,0.00028885,30]
[392343368,1761375040244,-151.0,0.00028885,30]
[392343369,1761375040254,-915.9262688,0.00028991,2]
[392343370,1761375040273,-84.0737312,0.00028991,2]
[392343371,1761375040283,-284.6570866,0.00029008,2]
[392343372,1761375040292,-166.66,0.00029029,2]
[392343373,1761375040302,-200.04,0.00029096,14]
[392343374,1761375040312,-232.10098267,0.000291,2]
[392343377,1761375043844,-1835.77368646,0.000291,2]
[392343395,1761375299589,1000.33994265,0.00027397,120]
[392343396,1761375655998,220.0,0.0001,2]
[392343397,1761375722636,207090.1691741,0.00027,120]
[392343398,1761375737253,240.87786235,0.00018,2]
[392343399,1761375812145,165.28050957,0.00036705,120]
[392343400,1761376036363,150.0,0.00027151,120]
[392343401,1761376078062,198.29,0.00027132,120]
[392343404,1761376232110,-1500.0,0.00024931,2]
[392343405,1761376232119,-500.0,0.00024932,2]
[392343406,1761376232128,-500.0,0.00024932,2]
[392343407,1761376232137,-500.0,0.00024932,2]
[392343408,1761376232146,-230.48512354,0.00025375,2]
[392343409,1761376232155,-150.0,0.000254,2]
[392343410,1761376232165,-166.66,0.00026569,30]
[392343411,1761376232173,-166.66,0.00027128,30]
[392343412,1761376232182,-150.0,0.00027151,2]
[392343413,1761376232191,-2930.0,0.00027236,7]
[392343414,1761376232201,-160.78532598,0.00027425,2]
[392343415,1761376232210,-195.0,0.00027425,120]
[392343416,1761376232219,-457.0,0.00027465,2]
[392343417,1761376232228,-1000.0,0.00027465,2]
[392343418,1761376232237,-368.86244698,0.00027466,2]
[392343419,1761376232246,-240.0,0.00027466,2]
[392343420,1761376232255,-10962.70779254,0.00027467,2]
[392343444,1761376240095,-583.14300014,0.00027467,2]
[392343445,1761376240211,-1008.36699931,0.00027467,2]
[392343446,1761376240222,-3606.64961945,0.00027467,2]
[392343447,1761376240233,-2530.08732892,0.00027467,2]
[392343448,1761376240502,-1769.0602484,0.00027467,2]
[392343474,1761376243893,-54128.07501124,0.00027467,2]